fUSD/lending_fUSD_20240421
["ID","MTS","AMOUNT","RATE_DAILY","PERIOD"]
[323143222,1713711035240,-500.0,0.00016868,2]
[323143223,1713711035249,-500.0,0.00016868,2]
[323143224,1713711035258,-500.0,0.00016868,2]
[323143225,1713711035268,-500.0,0.00016868,2]
[323143226,1713711035277,-500.0,0.00016868,2]
[323143227,1713711035286,-500.0,0.00016868,2]
[323143228,1713711035298,-500.0,0.00016868,2]
[323143229,1713711035307,-500.0,0.00016868,2]
[323143230,1713711035316,-500.0,0.00016868,2]
[323143231,1713711035326,-1505.26,0.00016868,2]
[323143232,1713711035336,-500.0,0.00016868,2]
[323143233,1713711035346,-500.0,0.00016868,2]
[323143234,1713711035357,-1475.5,0.00016868,2]
[323143235,1713711035367,-500.0,0.00016868,2]
[323143236,1713711035377,-500.0,0.00016868,2]
[323143237,1713711035387,-500.0,0.00016868,2]
[323143238,1713711035397,-500.0,0.00016868,2]
[323143239,1713711035406,-500.0,0.00016868,2]
[323143240,1713711035416,-500.0,0.00016868,2]
[323143241,1713711035425,-7985.37,0.00016868,2]
[323143242,1713711035435,-500.0,0.00016868,2]
[323143243,1713711035444,-500.0,0.00016868,2]
[323143244,1713711035454,-500.0,0.00016868,2]
[323143245,1713711035463,-500.0,0.00016868,2]
[323143246,1713711035473,-500.0,0.00016868,2]
[323143247,1713711035483,-500.0,0.00016868,2]
[323143248,1713711035492,-500.0,0.00016868,2]
[323143249,1713711035502,-2654.53,0.00016868,2]
[323143250,1713711035512,-500.0,0.00016868,2]
[323143251,1713711035522,-500.0,0.00016868,2]
[323143252,1713711035531,-500.0,0.00016868,2]
[323143253,1713711035540,-155.0,0.00016869,2]
[323143254,1713711035550,-500.0,0.00016869,2]
[323143255,1713711035559,-500.0,0.00016869,2]
[323143256,1713711035568,-500.0,0.00016869,2]
[323143257,1713711035578,-500.0,0.00016869,2]
[323143258,1713711035587,-500.0,0.00016869,2]
[323143259,1713711035599,-500.0,0.00016869,2]
[323143260,1713711035609,-500.0,0.00016869,2]
[323143261,1713711035618,-500.0,0.00016869,2]
[323143262,1713711035627,-500.0,0.00016869,2]
[323143263,1713711035636,-500.0,0.00016869,2]
[323143264,1713711035645,-1250.65,0.00016869,2]
[323143265,1713711035655,-500.0,0.00016869,2]
[323143266,1713711035665,-500.0,0.00016869,2]
[323143267,1713711035674,-500.0,0.00016869,2]
[323143268,1713711035684,-594.56462173,0.00016869,2]
[323143269,1713711035693,-500.0,0.00016869,2]
[323143270,1713711035703,-391.92606149,0.00016869,2]
[323143271,1713711035712,-894.53,0.00016869,2]
[323143272,1713711035721,-500.0,0.00016869,2]
[323143273,1713711035731,-500.0,0.00016869,2]
[323143274,1713711035740,-500.0,0.00016869,2]
[323143275,1713711035749,-500.0,0.00016869,2]
[323143276,1713711035759,-500.0,0.00016869,2]
[323143277,1713711035768,-500.0,0.00016869,2]
[323143278,1713711035777,-500.0,0.00016869,2]
[323143279,1713711035787,-500.0,0.00016869,2]
[323143280,1713711035797,-1065.93,0.00016869,2]
[323143281,1713711035806,-500.0,0.00016869,2]
[323143282,1713711035815,-500.0,0.00016869,2]
[323143283,1713711035825,-500.0,0.00016869,2]
[323143284,1713711035835,-352.9618682,0.00016869,2]
[323143285,1713711035844,-500.0,0.00016869,2]
[323143286,1713711035856,-500.0,0.00016869,2]
[323143287,1713711035866,-500.0,0.00016869,2]
[323143288,1713711035875,-773.67,0.00016869,2]
[323143289,1713711035883,-500.0,0.00016869,2]
[323143290,1713711035892,-500.0,0.00016869,2]
[323143291,1713711035900,-501.9087277,0.00016869,2]
[323143292,1713711035909,-500.0,0.00016869,2]
[323143293,1713711035918,-500.0,0.00016869,2]
[323143294,1713711035927,-2407.05,0.00016869,2]
[323143295,1713711035937,-500.0,0.00016869,2]
[323143296,1713711035946,-500.0,0.00016869,2]
[323143297,1713711035956,-500.0,0.00016869,2]
[323143298,1713711035965,-500.0,0.00016869,2]
[323143299,1713711035975,-790.56,0.00016869,2]
[323143300,1713711035984,-500.0,0.00016869,2]
[323143301,1713711035993,-500.0,0.00016869,2]
[323143302,1713711036003,-500.0,0.00016869,2]
[323143303,1713711036012,-500.0,0.00016869,2]
[323143304,1713711036021,-500.0,0.00016869,2]
[323143305,1713711036030,-500.0,0.00016869,2]
[323143306,1713711036039,-972.86,0.00016869,2]
[323143307,1713711036048,-500.0,0.00016869,2]
[323143308,1713711036057,-500.0,0.00016869,2]
[323143309,1713711036066,-500.0,0.00016869,2]
[323143310,1713711036075,-500.0,0.00016869,2]
[323143311,1713711036084,-584.43,0.00016869,2]
[323143312,1713711036093,-500.0,0.00016869,2]
[323143313,1713711036104,-500.0,0.00016869,2]
[323143314,1713711036113,-500.0,0.00016869,2]
[323143315,1713711036122,-500.0,0.00016869,2]
[323143316,1713711036131,-500.0,0.00016869,2]
[323143317,1713711036140,-500.0,0.00016869,2]
[323143318,1713711036150,-1098.78,0.00016869,2]
[323143319,1713711036161,-500.0,0.00016869,2]
[323143320,1713711036170,-500.0,0.00016869,2]
[323143321,1713711036179,-500.0,0.00016869,2]
[323143322,1713711036188,-500.0,0.00016869,2]
[323143323,1713711036198,-500.0,0.00016869,2]
[323143324,1713711036207,-500.0,0.00016869,2]
[323143325,1713711036216,-500.0,0.00016869,2]
[323143326,1713711036225,-500.0,0.00016869,2]
[323143327,1713711036234,-500.0,0.00016869,2]
[323143328,1713711036244,-500.0,0.00016869,2]
[323143329,1713711036254,-500.0,0.00016869,2]
[323143330,1713711036265,-500.0,0.00016869,2]
[323143331,1713711036275,-327.46501897,0.00016869,2]
[323143332,1713711036284,-725.04,0.00016869,2]
[323143333,1713711036294,-500.0,0.00016869,2]
[323143334,1713711036305,-500.0,0.00016869,2]
[323143335,1713711036315,-500.0,0.00016869,2]
[323143336,1713711036324,-556.07,0.00016869,2]
[323143337,1713711036333,-500.0,0.00016869,2]
[323143338,1713711036344,-500.0,0.00016869,2]
[323143339,1713711036356,-500.0,0.00016869,2]
[323143340,1713711036366,-500.0,0.00016869,2]
[323143341,1713711036378,-500.0,0.00016869,2]
[323143342,1713711036388,-500.0,0.00016869,2]
[323143343,1713711036398,-500.88655787,0.00016869,2]
[323143344,1713711036408,-498.81363837,0.00016869,2]
[323143345,1713711036418,-500.0,0.00016869,2]
[323143346,1713711036427,-500.0,0.00016869,2]
[323143347,1713711036438,-500.0,0.00016869,2]
[323143348,1713711036447,-608.89,0.00016869,2]
[323143349,1713711036456,-500.0,0.00016869,2]
[323143350,1713711036466,-500.0,0.00016869,2]
[323143351,1713711036475,-500.0,0.00016869,2]
[323143352,1713711036485,-500.0,0.00016869,2]
[323143353,1713711036495,-500.0,0.00016869,2]
[323143354,1713711036504,-500.0,0.00016869,2]
[323143355,1713711036513,-771.24,0.00016869,2]
[323143356,1713711036522,-500.0,0.00016869,2]
[323143357,1713711036532,-500.0,0.00016869,2]
[323143358,1713711036541,-500.0,0.00016869,2]
[323143359,1713711036551,-500.0,0.00016869,2]
[323143360,1713711036560,-500.0,0.00016869,2]
[323143361,1713711036569,-500.0,0.00016869,2]
[323143362,1713711036578,-500.0,0.00016869,2]
[323143363,1713711036588,-500.0,0.00016869,2]
[323143364,1713711036598,-500.0,0.00016869,2]
[323143365,1713711036608,-500.0,0.00016869,2]
[323143366,1713711036617,-500.0,0.00016869,2]
[323143367,1713711036626,-500.0,0.00016869,2]
[323143368,1713711036636,-500.0,0.00016869,2]
[323143369,1713711036645,-500.0,0.00016869,2]
[323143370,1713711036654,-500.0,0.00016869,2]
[323143371,1713711036663,-706.79,0.00016869,2]
[323143372,1713711036673,-500.0,0.00016869,2]
[323143373,1713711036682,-500.0,0.00016869,2]
[323143374,1713711036692,-500.0,0.00016869,2]
[323143375,1713711036701,-997.58,0.00016869,2]
[323143376,1713711036710,-500.0,0.00016869,2]
[323143377,1713711036719,-884.44,0.00016869,2]
[323143378,1713711036728,-500.0,0.00016869,2]
[323143379,1713711036738,-500.0,0.00016869,2]
[323143380,1713711036747,-500.0,0.00016869,2]
[323143381,1713711036756,-500.0,0.00016869,2]
[323143382,1713711036765,-4175.7,0.00016869,2]
[323143383,1713711036774,-501.55832429,0.00016869,2]
[323143384,1713711036783,-691.09,0.00016869,2]
[323143385,1713711036792,-500.0,0.00016869,2]
[323143386,1713711036801,-500.0,0.00016869,2]
[323143387,1713711036810,-16398.46,0.00016869,2]
[323143388,1713711036820,-500.64802181,0.00016869,2]
[323143389,1713711036829,-1144.77,0.00016869,2]
[323143390,1713711036839,-3395.27,0.00016869,2]
[323143391,1713711036849,-2120.52,0.00016869,2]
[323143392,1713711036858,-500.0,0.00016869,2]
[323143393,1713711036868,-500.0,0.00016869,2]
[323143394,1713711036878,-5603.41,0.00016869,2]
[323143395,1713711036887,-5428.41,0.00016869,2]
[323143396,1713711036897,-3162.61,0.00016869,2]
[323143397,1713711036906,-4004.65661445,0.00016869,2]
[323143398,1713711037432,-257.21,0.00016869,2]
[323143399,1713711037445,-322.31338555,0.00016869,2]
[323143400,1713711037454,-500.0,0.00016869,2]
[323143401,1713711037465,-5386.97,0.00016869,2]
[323143402,1713711037474,-849.4,0.00016869,2]
[323143403,1713711037483,-3148.2,0.00016869,2]
[323143404,1713711037492,-500.0,0.00016869,2]
[323143405,1713711037501,-500.0,0.00016869,2]
[323143406,1713711037511,-500.0,0.00016869,2]
[323143407,1713711037520,-2357.53,0.00016869,2]
[323143408,1713711037529,-46172.16,0.00016869,2]
[323143409,1713711037538,-500.0,0.00016869,2]
[323143410,1713711037548,-500.0,0.00016869,2]
[323143411,1713711037557,-500.0,0.00016869,2]
[323143412,1713711037568,-1097.57,0.00016869,2]
[323143413,1713711037577,-500.0,0.00016869,2]
[323143414,1713711037586,-500.0,0.00016869,2]
[323143415,1713711037595,-289.52815411,0.00016869,2]
[323143416,1713711037606,-2524.9,0.00016869,2]
[323143417,1713711037615,-500.0,0.00016869,2]
[323143418,1713711037624,-500.0,0.00016869,2]
[323143419,1713711037633,-580.70037759,0.00016869,2]
[323143420,1713711037642,-500.0,0.00016869,2]
[323143421,1713711037652,-1496.11,0.00016869,2]
[323143423,1713711037661,-500.0,0.00016869,2]
[323143425,1713711037670,-500.0,0.00016869,2]
[323143427,1713711037679,-500.0,0.00016869,2]
[323143429,1713711037688,-977.7,0.00016869,2]
[323143431,1713711037698,-169.24281867,0.00016869,2]
[323143433,1713711037707,-500.0,0.00016869,2]
[323143435,1713711037716,-500.0,0.00016869,2]
[323143437,1713711037725,-500.0,0.00016869,2]
[323143439,1713711037734,-2753.82,0.00016869,2]
[323143441,1713711037744,-500.0,0.00016869,2]
[323143443,1713711037753,-500.0,0.00016869,2]
[323143445,1713711037762,-766.98,0.00016869,2]
[323143447,1713711037771,-9183.73,0.00016869,2]
[323143449,1713711037780,-4269.48,0.00016869,2]
[323143450,1713711037789,-500.0,0.00016869,2]
[323143452,1713711037798,-500.0,0.00016869,2]
[323143454,1713711037808,-500.0,0.00016869,2]
[323143456,1713711037816,-2382.83,0.00016869,2]
[323143457,1713711037826,-500.0,0.00016869,2]
[323143458,1713711037835,-4414.01,0.00016869,2]
[323143459,1713711037845,-500.0,0.00016869,2]
[323143460,1713711037855,-812.11,0.00016869,2]
[323143461,1713711037864,-500.0,0.00016869,2]
[323143462,1713711037874,-8.32530503,0.00016869,2]
[323143464,1713711037883,-33852.254884,0.00016869,2]
[323143465,1713711037892,-7199.807428,0.00016869,2]
[323143467,1713711037902,-14399.614855,0.00016869,2]
[323143469,1713711037911,-200.0,0.00016869,2]
[323143471,1713711037920,-521.641291,0.00016869,2]
[323143473,1713711037929,-7212.53573,0.00016869,2]
[323143475,1713711037939,-751.12,0.00016877,2]
[323143477,1713711037948,-500.0,0.00016877,2]
[323143479,1713711037957,-743.36,0.00016877,2]
[323143481,1713711037966,-556.63,0.00016877,2]
[323143483,1713711037975,-500.0,0.00016877,2]
[323143485,1713711037984,-686.39,0.00016877,2]
[323143487,1713711037993,-655.03,0.00016877,2]
[323143489,1713711038002,-1370.79,0.00016877,2]
[323143491,1713711038011,-886.37,0.00016877,2]
[323143493,1713711038020,-1106.85,0.00016877,2]
[323143495,1713711038029,-2361.72063418,0.00016877,2]
[323143496,1713711038038,-1096.12,0.00016877,2]
[323143498,1713711038047,-1122.57316238,0.00016877,2]
[323143500,1713711038057,-619.26,0.00016877,2]
[323143502,1713711038066,-500.0,0.00016877,2]
[323143504,1713711038074,-500.0,0.00016877,2]
[323143506,1713711038083,-166.91936391,0.00016877,2]
[323143507,1713711038092,-500.0,0.00016877,2]
[323143509,1713711038101,-201.07023406,0.00016877,2]
[323143511,1713711038110,-500.0,0.00016877,2]
[323143513,1713711038119,-500.0,0.00016877,2]
[323143515,1713711038131,-500.0,0.00016877,2]
[323143517,1713711038140,-500.0,0.00016877,2]
[323143519,1713711038149,-500.0,0.00016877,2]
[323143521,1713711038158,-500.0,0.00016877,2]
[323143523,1713711038167,-673.67,0.00016877,2]
[323143524,1713711038176,-500.0,0.00016877,2]
[323143526,1713711038186,-500.0,0.00016877,2]
[323143528,1713711038195,-500.0,0.00016877,2]
[323143530,1713711038204,-500.0,0.00016877,2]
[323143532,1713711038213,-500.0,0.00016877,2]
[323143533,1713711038222,-405.21578301,0.00016877,2]
[323143535,1713711038231,-500.0,0.00016877,2]
[323143537,1713711038240,-2162.26,0.00016877,2]
[323143539,1713711038249,-500.0,0.00016877,2]
[323143541,1713711038259,-500.0,0.00016877,2]
[323143543,1713711038268,-2400.6,0.00016877,2]
[323143545,1713711038277,-500.0,0.00016877,2]
[323143547,1713711038286,-500.0,0.00016877,2]
[323143549,1713711038298,-150.0,0.00016877,2]
[323143550,1713711038308,-739.17,0.00016877,2]
[323143553,1713711038318,-500.0,0.00016877,2]
[323143556,1713711038328,-500.0,0.00016877,2]
[323143558,1713711038338,-500.0,0.00016877,2]
[323143561,1713711038348,-658.8,0.00016877,2]
[323143566,1713711038359,-2162.22,0.00016877,2]
[323143569,1713711038368,-500.0,0.00016877,2]
[323143571,1713711038377,-551.7,0.00016877,2]
[323143573,1713711038387,-500.0,0.00016877,2]
[323143576,1713711038396,-500.0,0.00016877,2]
[323143579,1713711038406,-500.0,0.00016877,2]
[323143582,1713711038415,-500.0,0.00016877,2]
[323143585,1713711038424,-500.0,0.00016877,2]
[323143588,1713711038433,-500.0,0.00016877,2]
[323143591,1713711038442,-500.0,0.00016877,2]
[323143594,1713711038451,-1133.91,0.00016877,2]
[323143598,1713711038462,-738.93,0.00016877,2]
[323143600,1713711038471,-500.0,0.00016877,2]
[323143603,1713711038480,-714.37,0.00016877,2]
[323143606,1713711038489,-500.0,0.00016877,2]
[323143607,1713711038498,-500.0,0.00016877,2]
[323143608,1713711038507,-500.0,0.00016877,2]
[323143609,1713711038516,-500.0,0.00016877,2]
[323143610,1713711038525,-500.0,0.00016877,2]
[323143611,1713711038534,-500.0,0.00016877,2]
[323143612,1713711038543,-500.0,0.00016877,2]
[323143613,1713711038551,-500.0,0.00016877,2]
[323143614,1713711038561,-500.0,0.00016877,2]
[323143615,1713711038570,-567.15,0.00016877,2]
[323143616,1713711038579,-500.0,0.00016877,2]
[323143617,1713711038588,-2494.71,0.00016878,2]
[323143618,1713711038596,-2299.31,0.00016878,2]
[323143619,1713711038607,-3736.81,0.00016878,2]
[323143620,1713711038616,-500.0,0.00016878,2]
[323143621,1713711038625,-2690.88,0.00016878,2]
[323143623,1713711038634,-993.48,0.00016878,2]
[323143625,1713711038643,-3718.17,0.00016878,2]
[323143627,1713711038652,-2829.76,0.00016878,2]
[323143629,1713711038661,-3397.22,0.00016878,2]
[323143631,1713711038670,-1883.28,0.00016878,2]
[323143633,1713711038679,-2935.02,0.00016878,2]
[323143635,1713711038689,-6601.55,0.00016878,2]
[323143637,1713711038698,-2892.33,0.00016878,2]
[323143639,1713711038707,-5039.94,0.00016878,2]
[323143641,1713711038716,-6523.12,0.00016878,2]
[323143643,1713711038725,-3355.22,0.00016878,2]
[323143645,1713711038734,-7138.69,0.00016878,2]
[323143647,1713711038743,-636.38,0.00016878,2]
[323143649,1713711038752,-500.4325115,0.00016878,2]
[323143651,1713711038761,-2267.91,0.00016878,2]
[323143653,1713711038771,-3771.02,0.00016878,2]
[323143655,1713711038780,-271.01026853,0.00016879,2]
[323143657,1713711038789,-500.0,0.00016879,2]
[323143659,1713711038798,-500.0,0.00016879,2]
[323143661,1713711038808,-500.0,0.00016879,2]
[323143663,1713711038817,-500.0,0.00016879,2]
[323143665,1713711038826,-500.0,0.00016879,2]
[323143667,1713711038835,-500.0,0.00016879,2]
[323143669,1713711038843,-500.0,0.00016879,2]
[323143671,1713711038854,-500.0,0.00016879,2]
[323143673,1713711038863,-586.55,0.00016879,2]
[323143675,1713711038872,-500.0,0.00016879,2]
[323143677,1713711038881,-500.0,0.00016879,2]
[323143679,1713711038890,-500.0,0.00016879,2]
[323143680,1713711038899,-500.0,0.00016879,2]
[323143682,1713711038908,-500.0,0.00016879,2]
[323143685,1713711038920,-500.0,0.00016879,2]
[323143687,1713711038929,-500.0,0.00016879,2]
[323143688,1713711038938,-589.31,0.00016879,2]
[323143690,1713711038949,-500.0,0.00016879,2]
[323143693,1713711038958,-500.0,0.00016879,2]
[323143694,1713711038967,-500.0,0.00016879,2]
[323143696,1713711038976,-500.0,0.00016879,2]
[323143698,1713711038985,-500.0,0.00016879,2]
[323143700,1713711038994,-500.0,0.00016879,2]
[323143703,1713711039009,-500.0,0.00016879,2]
[323143705,1713711039018,-646.56,0.00016879,2]
[323143707,1713711039027,-500.0,0.00016879,2]
[323143708,1713711039036,-500.0,0.00016879,2]
[323143710,1713711039045,-500.0,0.00016879,2]
[323143712,1713711039054,-500.0,0.00016879,2]
[323143714,1713711039063,-594.89,0.00016879,2]
[323143716,1713711039072,-500.0,0.00016879,2]
[323143718,1713711039081,-500.0,0.00016879,2]
[323143720,1713711039089,-500.0,0.00016879,2]
[323143722,1713711039099,-500.0,0.00016879,2]
[323143724,1713711039110,-500.0,0.00016879,2]
[323143725,1713711039119,-500.0,0.00016879,2]
[323143726,1713711039127,-500.0,0.00016879,2]
[323143727,1713711039136,-500.0,0.00016879,2]
[323143728,1713711039145,-500.0,0.00016879,2]
[323143729,1713711039155,-500.0,0.00016879,2]
[323143730,1713711039164,-500.0,0.00016879,2]
[323143731,1713711039173,-543.32,0.00016879,2]
[323143732,1713711039182,-500.28230065,0.00016879,2]
[323143733,1713711039191,-504.14683265,0.00016879,2]
[323143734,1713711039200,-500.0,0.00016879,2]
[323143735,1713711039209,-501.56953817,0.00016879,2]
[323143736,1713711039218,-500.0,0.00016879,2]
[323143737,1713711039228,-500.0,0.00016879,2]
[323143738,1713711039237,-500.0,0.00016879,2]
[323143739,1713711039246,-500.0,0.00016879,2]
[323143740,1713711039256,-540.24,0.00016879,2]
[323143741,1713711039265,-528.29,0.00016879,2]
[323143742,1713711039274,-500.0,0.00016879,2]
[323143743,1713711039283,-500.0,0.00016879,2]
[323143744,1713711039293,-504.25,0.00016879,2]
[323143745,1713711039303,-500.0,0.00016879,2]
[323143746,1713711039312,-500.0,0.00016879,2]
[323143747,1713711039321,-594.37,0.00016879,2]
[323143748,1713711039330,-500.0,0.00016879,2]
[323143749,1713711039341,-500.0,0.00016879,2]
[323143750,1713711039350,-539.21,0.00016879,2]
[323143751,1713711039360,-500.0,0.00016879,2]
[323143752,1713711039371,-500.0,0.00016879,2]
[323143753,1713711039380,-500.0,0.00016879,2]
[323143754,1713711039389,-502.98081121,0.00016879,2]
[323143755,1713711039398,-500.0,0.00016879,2]
[323143756,1713711039407,-500.0,0.00016879,2]
[323143757,1713711039416,-500.0,0.00016879,2]
[323143758,1713711039426,-502.19285768,0.00016879,2]
[323143759,1713711039435,-500.0,0.00016879,2]
[323143760,1713711039445,-500.0,0.00016879,2]
[323143761,1713711039455,-500.0,0.00016879,2]
[323143762,1713711039465,-500.0,0.00016879,2]
[323143763,1713711039474,-500.0,0.00016879,2]
[323143764,1713711039483,-504.08848076,0.00016879,2]
[323143765,1713711039492,-500.0,0.00016879,2]
[323143766,1713711039501,-500.0,0.00016879,2]
[323143767,1713711039510,-500.0,0.00016879,2]
[323143768,1713711039519,-501.15474616,0.00016879,2]
[323143769,1713711039528,-500.0,0.00016879,2]
[323143770,1713711039537,-500.0,0.00016879,2]
[323143771,1713711039547,-500.0,0.00016879,2]
[323143772,1713711039556,-500.0,0.00016879,2]
[323143773,1713711039730,-500.0,0.00016879,2]
[323143774,1713711039738,-504.06602325,0.00016879,2]
[323143775,1713711039747,-500.0,0.00016879,2]
[323143776,1713711039756,-500.0,0.00016879,2]
[323143777,1713711039766,-500.0,0.00016879,2]
[323143778,1713711039775,-503.8261192,0.00016879,2]
[323143779,1713711039785,-502.265299,0.00016879,2]
[323143780,1713711039795,-505.4215157,0.00016879,2]
[323143782,1713711039804,-500.0,0.00016879,2]
[323143784,1713711039813,-500.0,0.00016879,2]
[323143785,1713711039822,-500.0,0.00016879,2]
[323143786,1713711039832,-500.0,0.00016879,2]
[323143787,1713711039840,-500.0,0.00016879,2]
[323143788,1713711039850,-500.0,0.00016879,2]
[323143789,1713711039860,-500.0,0.00016879,2]
[323143790,1713711039869,-500.0,0.00016879,2]
[323143791,1713711039878,-500.0,0.00016879,2]
[323143792,1713711039887,-500.0,0.00016879,2]
[323143793,1713711039896,-500.0,0.00016879,2]
[323143794,1713711039905,-500.0,0.00016879,2]
[323143795,1713711039914,-500.0,0.00016879,2]
[323143796,1713711039923,-500.0,0.00016879,2]
[323143797,1713711039932,-500.0,0.00016879,2]
[323143798,1713711039976,-500.0,0.00016879,2]
[323143799,1713711039986,-500.0,0.00016879,2]
[323143800,1713711039995,-500.0,0.00016879,2]
[323143801,1713711040004,-500.0,0.00016879,2]
[323143802,1713711040013,-500.0,0.00016879,2]
[323143803,1713711040022,-616.30098265,0.00016879,2]
[323143804,1713711040031,-500.0,0.00016879,2]
[323143805,1713711040040,-500.0,0.00016879,2]
[323143806,1713711040050,-500.0,0.00016879,2]
[323143807,1713711040059,-500.0,0.00016879,2]
[323143808,1713711040068,-500.0,0.00016879,2]
[323143809,1713711040077,-500.0,0.00016879,2]
[323143810,1713711040086,-642.76,0.00016879,2]
[323143811,1713711040096,-500.0,0.00016879,2]
[323143812,1713711040106,-500.0,0.00016879,2]
[323143813,1713711040115,-500.0,0.00016879,2]
[323143814,1713711040124,-543.18,0.00016879,2]
[323143815,1713711040134,-500.0,0.00016879,2]
[323143816,1713711040144,-500.0,0.00016879,2]
[323143817,1713711040154,-500.0,0.00016879,2]
[323143818,1713711040164,-500.0,0.00016879,2]
[323143819,1713711040175,-500.0,0.00016879,2]
[323143820,1713711040186,-500.0,0.00016879,2]
[323143821,1713711040197,-500.0,0.00016879,2]
[323143822,1713711040207,-500.0,0.00016879,2]
[323143823,1713711040217,-500.0,0.00016879,2]
[323143824,1713711040228,-562.27,0.00016879,2]
[323143825,1713711040239,-500.0,0.00016879,2]
[323143826,1713711040250,-500.0,0.00016879,2]
[323143827,1713711040260,-500.0,0.00016879,2]
[323143828,1713711040270,-500.0,0.00016879,2]
[323143829,1713711040280,-536.56,0.00016879,2]
[323143830,1713711040290,-500.0,0.00016879,2]
[323143831,1713711040303,-500.0,0.00016879,2]
[323143832,1713711040313,-500.0,0.00016879,2]
[323143833,1713711040322,-500.0,0.00016879,2]
[323143834,1713711040332,-500.0,0.00016879,2]
[323143835,1713711040342,-500.0,0.00016879,2]
[323143836,1713711040352,-512.83,0.00016879,2]
[323143837,1713711040361,-500.0,0.00016879,2]
[323143838,1713711040371,-500.0,0.00016879,2]
[323143839,1713711040381,-500.0,0.00016879,2]
[323143840,1713711040391,-500.0,0.00016879,2]
[323143841,1713711040401,-500.0,0.00016879,2]
[323143842,1713711040410,-500.0,0.00016879,2]
[323143843,1713711040421,-500.0,0.00016879,2]
[323143844,1713711040431,-500.0,0.00016879,2]
[323143845,1713711040441,-500.0,0.00016879,2]
[323143846,1713711040451,-500.0,0.00016879,2]
[323143847,1713711040461,-500.0,0.00016879,2]
[323143849,1713711040471,-500.0,0.00016879,2]
[323143850,1713711040481,-500.0,0.00016879,2]
[323143851,1713711040490,-500.0,0.00016879,2]
[323143852,1713711040500,-500.0,0.00016879,2]
[323143853,1713711040510,-500.0,0.00016879,2]
[323143854,1713711040520,-500.0,0.00016879,2]
[323143855,1713711040529,-500.0,0.00016879,2]
[323143856,1713711040539,-500.0,0.00016879,2]
[323143857,1713711040549,-500.0,0.00016879,2]
[323143858,1713711040560,-500.0,0.00016879,2]
[323143859,1713711040570,-500.0,0.00016879,2]
[323143860,1713711040580,-500.0,0.00016879,2]
[323143861,1713711040590,-500.0,0.00016879,2]
[323143862,1713711040600,-500.0,0.00016879,2]
[323143863,1713711040613,-500.0,0.00016879,2]
[323143864,1713711040623,-500.0,0.00016879,2]
[323143865,1713711040632,-500.0,0.00016879,2]
[323143866,1713711040642,-577.1,0.00016879,2]
[323143867,1713711040651,-500.0,0.00016879,2]
[323143868,1713711040661,-500.0,0.00016879,2]
[323143869,1713711040672,-500.0,0.00016879,2]
[323143870,1713711040682,-547.93,0.00016879,2]